[Event "FIDE World Cup O12-B 2024"]
[Site "Batumi"]
[Date "2024.06.25"]
[Round "3.7"]
[White "Amreyev, Azat"]
[Black "Aadik Theophane Lenin"]
[Result "0-1"]
[ECO "B84"]
[WhiteElo "1704"]
[BlackElo "1852"]
[Annotator "NA RC"]
[PlyCount "86"]
[EventDate "2024.06.23"]
[EventType "swiss"]
[EventCountry "GEO"]
[SourceTitle "playchess.com"]
[Source "ChessBase"]
[SourceQuality "1"]
[TimeControl "5400+30"]

1. e4 {[%emt 0:00:50]} c5 {[%emt 0:00:10]} 2. Nf3 {[%emt 0:00:25]} e6 {[%emt 0:00:06]} 3. d4 {[%emt 0:00:08]} cxd4 {[%emt 0:00:04]} 4. Nxd4 {[%emt 0:00:04]} Nc6 {[%emt 0:00:04]} 5. Nc3 {[%emt 0:00:12]} Qc7 {[%emt 0:00:03]} 6. Be2 {[%emt 0:02:51]} a6 {[%emt 0:00:08]} 7. O-O {[%emt 0:00:17]} Nf6 {[%emt 0:00:02]} 8. Kh1 {[%emt 0:00:28]} Be7 {[%emt 0:00:35]} 9. f4 {[%emt 0:01:13]} d6 {[%emt 0:00:01]} 10. f5 {[%emt 0:02:32]} Ne5 {[%emt 0:10:34]} 11. Bg5 {[%emt 0:14:33]} O-O {[%emt 0:05:22]} 12. Qe1 {[%emt 0:04:53]} b5 {[%emt 0:00:51]} 13. a3 {[%emt 0:00:42]} h6 {[%emt 0:20:01]} 14. Bf4 {[%emt 0:15:04]} Nc4 {[%emt 0:02:36]} 15. Bxc4 {[%emt 0:12:59]} Qxc4 {[%emt 0:00:11]} 16. Be3 {[%emt 0:00:14]} e5 {[%emt 0:02:31]} 17. Nb3 {[%emt 0:02:21]} Qc7 {[%emt 0:03:15]} 18. Qg3 {[%emt 0:02:43]} Kh8 {[%emt 0:00:26]} 19. Qh3 {[%emt 0:10:00]} Kh7 {[%emt 0:01:30]} 20. Bg5 {[%emt 0:07:26]} Bb7 {[%emt 0:01:13]} 21. Bxf6 {[%emt 0:01:09]} Bxf6 {[%emt 0:00:01]} 22. Rad1 {[%emt 0:00:25]} Rac8 {[%emt 0:01:00]} 23. Rf2 {[%emt 0:01:36]} Qb6 {[%emt 0:00:27]} 24. Re2 {[%emt 0:10:03]} a5 {[%emt 0:05:10]} 25. Nd5 {[%emt 0:06:02]} Bxd5 {[%emt 0:00:15]} 26. Rxd5 {[%emt 0:04:20]} Rfd8 {[%emt 0:15:50]} 27. Qd3 {[%emt 0:00:00]} Rb8 {[%emt 0:00:01]} 28. Rd2 {[%emt 0:00:00]} a4 {[%emt 0:00:24]} 29. Nc1 {[%emt 0:00:00]} Bg5 {[%emt 0:00:26]} 30. Rd1 {[%emt 0:00:00]} b4 {[%emt 0:00:18]} 31. Ne2 {[%emt 0:00:07]} bxa3 {[%emt 0:00:52]} 32. bxa3 {[%emt 0:00:04]} Qb2 {[%emt 0:01:04]} 33. h3 {[%emt 0:01:44]} Rdc8 {[%emt 0:00:10]} 34. c3 {[%emt 0:00:36]} Qxa3 {[%emt 0:00:31]} 35. Rxd6 {[%emt 0:00:03]} Rd8 {[%emt 0:00:18]} 36. Rd5 {[%emt 0:00:29]} Qb2 {[%emt 0:00:46]} 37. Qa6 {[%emt 0:01:31]} Ra8 {[%emt 0:00:45]} 38. Qc4 {[%emt 0:00:14]} Rxd5 {[%emt 0:01:06]} 39. Rxd5 {[%emt 0:00:17]} a3 {[%emt 0:01:03]} 40. Rd7 {[%emt 0:00:03]} a2 {[%emt 0:01:16]} 41. Qxf7 {[%emt 0:00:05]} a1=Q+ {[%emt 0:00:04]} 42. Kh2 {[%emt 0:00:04]} Rg8 {[%emt 0:00:10]} 43. h4 {[%emt 0:00:55]} Qe1 {[%emt 0:01:30]} 0-1

[Event "FIDE World Cup O12-B 2024"]
[Site "Batumi"]
[Date "2024.06.25"]
[Round "3.8"]
[White "Yusupov, Rauf"]
[Black "Chia, Yu Zhe Ashton"]
[Result "0-1"]
[ECO "A48"]
[WhiteElo "1800"]
[BlackElo "2229"]
[Annotator "RC"]
[PlyCount "94"]
[EventDate "2024.06.23"]
[EventType "swiss"]
[EventCountry "GEO"]
[SourceTitle "playchess.com"]
[Source "ChessBase"]
[SourceQuality "1"]
[TimeControl "5400+30"]

1. d4 {[%emt 0:00:01]} Nf6 {[%emt 0:00:04]} 2. Nf3 {[%emt 0:00:04]} d5 {[%emt 0:00:03]} 3. e3 {[%emt 0:00:05]} c5 {[%emt 0:00:55]} 4. b3 {[%emt 0:00:06]} cxd4 {[%emt 0:00:18]} 5. exd4 {[%emt 0:00:17]} Nc6 {[%emt 0:00:05]} 6. Bb2 {[%emt 0:02:09]} g6 {[%emt 0:02:44]} 7. Be2 {[%emt 0:00:23]} Bg7 {[%emt 0:00:04]} 8. O-O {[%emt 0:00:05]} O-O {[%emt 0:00:09]} 9. Nbd2 {[%emt 0:00:29]} Bf5 {[%emt 0:00:35]} 10. a3 {[%emt 0:00:57]} Ne4 {[%emt 0:00:11]} 11. Bd3 {[%emt 0:00:59]} Qb6 {[%emt 0:01:12]} 12. Re1 {[%emt 0:03:41]} Nxd2 {[%emt 0:02:20]} 13. Qxd2 {[%emt 0:00:09]} Nxd4 {[%emt 0:02:10]} 14. Ne5 {[%emt 0:10:05]} Rfd8 {[%emt 0:05:54]} 15. Rad1 {[%emt 0:07:17]} Bxd3 {[%emt 0:02:38]} 16. Qxd3 {[%emt 0:04:54]} Ne6 {[%emt 0:02:13]} 17. h4 {[%emt 0:08:06]} Rac8 {[%emt 0:01:05]} 18. g3 {[%emt 0:11:10]} d4 {[%emt 0:11:07]} 19. Rd2 {[%emt 0:06:07]} Qa5 {[%emt 0:03:41]} 20. Rde2 {[%emt 0:00:19]} Bxe5 {[%emt 0:01:55]} 21. Rxe5 {[%emt 0:01:50]} Rd5 {[%emt 0:01:23]} 22. R5e2 {[%emt 0:03:27]} Rcd8 {[%emt 0:06:03]} 23. Qe4 {[%emt 0:15:36]} Qc7 {[%emt 0:07:58]} 24. a4 {[%emt 0:05:08]} R8d7 {[%emt 0:02:15]} 25. Ba3 {[%emt 0:00:57]} Nc5 {[%emt 0:04:38]} 26. Qg4 {[%emt 0:01:09]} f5 {[%emt 0:03:43]} 27. Qf3 {[%emt 0:03:48]} e5 {[%emt 0:02:30]} 28. Bxc5 {[%emt 0:10:45]} Rxc5 {[%emt 0:00:33]} 29. Qd3 {[%emt 0:00:56]} e4 {[%emt 0:00:53]} 30. Qd2 {[%emt 0:00:52]} Rc3 {[%emt 0:00:28]} 31. Qg5 {[%emt 0:01:13]} Rxc2 {[%emt 0:02:49]} 32. Rxc2 {[%emt 0:00:08]} Qxc2 {[%emt 0:00:49]} 33. Rc1 {[%emt 0:00:15]} d3 {[%emt 0:03:48]} 34. Kg2 {[%emt 0:03:11]} Qb2 {[%emt 0:02:08]} 35. Qh6 {[%emt 0:00:31]} Qg7 {[%emt 0:00:30]} 36. Rc8+ {[%emt 0:00:02]} Kf7 {[%emt 0:00:06]} 37. Qc1 {[%emt 0:00:04]} Qe5 {[%emt 0:01:42]} 38. Qh6 {[%emt 0:00:43]} Qg7 {[%emt 0:02:05]} 39. Qc1 {[%emt 0:00:12]} Qf6 {[%emt 0:10:23]} 40. Qc4+ {[%emt 0:01:25]} Ke7 {[%emt 0:08:52]} 41. Qb4+ {[%emt 0:00:46]} Qd6 {[%emt 0:08:01]} 42. Qd2 {[%emt 0:00:04]} Rd8 {[%emt 0:00:00]} 43. Rc1 {[%emt 0:00:56]} Kd7 {[%emt 0:00:00]} 44. Qh6 {[%emt 0:00:21]} Qe7 {[%emt 0:00:00]} 45. Qe3 {[%emt 0:00:36]} Ke8 {[%emt 0:00:00]} 46. Qxa7 {[%emt 0:00:27]} d2 {[%emt 0:00:00]} 47. Rd1 {[%emt 0:00:03]} f4 {[%emt 0:00:00]} 0-1

[Event "FIDE World Cup O12-B 2024"]
[Site "Batumi"]
[Date "2024.06.25"]
[Round "3.9"]
[White "Pirtac, Alexandru"]
[Black "Khubuluri, Zaal"]
[Result "1-0"]
[ECO "B33"]
[WhiteElo "1977"]
[BlackElo "1501"]
[Annotator "RC"]
[PlyCount "47"]
[EventDate "2024.06.23"]
[EventType "swiss"]
[EventCountry "GEO"]
[SourceTitle "playchess.com"]
[Source "ChessBase"]
[SourceQuality "1"]
[TimeControl "5400+30"]

1. e4 {[%emt 0:00:19]} c5 {[%emt 0:00:15]} 2. Nf3 {[%emt 0:00:53]} Nc6 {[%emt 0:00:18]} 3. d4 {[%emt 0:01:09]} cxd4 {[%emt 0:00:11]} 4. Nxd4 {[%emt 0:00:24]} Nf6 {[%emt 0:00:28]} 5. Nc3 {[%emt 0:01:34]} e5 {[%emt 0:00:23]} 6. Ndb5 {[%emt 0:01:19]} d6 {[%emt 0:00:27]} 7. Bg5 {[%emt 0:00:20]} a6 {[%emt 0:00:20]} 8. Na3 {[%emt 0:00:06]} b5 {[%emt 0:01:00]} 9. Nd5 {[%emt 0:00:16]} Be7 {[%emt 0:00:30]} 10. Bxf6 {[%emt 0:00:22]} gxf6 {[%emt 0:04:23]} 11. Bd3 {[%emt 0:01:34]} Be6 {[%emt 0:07:13]} 12. c3 {[%emt 0:02:02]} Bxd5 {[%emt 0:06:05]} 13. exd5 {[%emt 0:00:25]} Na5 {[%emt 0:02:20]} 14. Nc2 {[%emt 0:03:39]} Bf8 {[%emt 0:07:01]} 15. a4 {[%emt 0:05:26]} Nb3 {[%emt 0:03:34]} 16. Ra3 {[%emt 0:01:16]} bxa4 {[%emt 0:02:16]} 17. Rxa4 {[%emt 0:00:18]} Nc5 {[%emt 0:00:57]} 18. Ra2 {[%emt 0:00:16]} e4 {[%emt 0:01:17]} 19. Be2 {[%emt 0:00:13]} Qe7 {[%emt 0:11:32]} 20. Nd4 {[%emt 0:02:13]} e3 {[%emt 0:08:51]} 21. Bb5+ {[%emt 0:01:21]} Nd7 {[%emt 0:02:25]} 22. Nf5 {[%emt 0:00:11]} exf2+ {[%emt 0:00:57]} 23. Kxf2 {[%emt 0:00:22]} Qe5 {[%emt 0:03:28]} 24. Re1 {[%emt 0:00:15]} 1-0

[Event "FIDE World Cup O12-B 2024"]
[Site "Batumi"]
[Date "2024.06.25"]
[Round "3.10"]
[White "Akhmet, Suleyman"]
[Black "Suleymanov, Askhab"]
[Result "1/2-1/2"]
[ECO "C67"]
[WhiteElo "1793"]
[BlackElo "1630"]
[Annotator "NA RC"]
[PlyCount "67"]
[EventDate "2024.06.23"]
[EventType "swiss"]
[EventCountry "GEO"]
[SourceTitle "playchess.com"]
[Source "ChessBase"]
[SourceQuality "1"]
[TimeControl "5400+30"]

1. e4 {[%emt 0:00:11]} e5 {[%emt 0:00:10]} 2. Nf3 {[%emt 1:31:19]} Nc6 {[%emt 0:00:10]} 3. Bb5 {[%emt 0:00:00]} Nf6 {[%emt 0:00:09]} 4. O-O {[%emt 0:00:00]} Nxe4 {[%emt 0:00:20]} 5. d4 {[%emt 0:00:00]} Nd6 {[%emt 0:00:25]} 6. dxe5 {[%emt 0:00:00]} Nxb5 {[%emt 0:00:20]} 7. a4 {[%emt 0:00:00]} Nbd4 {[%emt 0:00:36]} 8. Nxd4 {[%emt 0:00:00]} d5 {[%emt 0:08:16]} 9. Nxc6 {[%emt 0:00:00]} bxc6 {[%emt 0:00:10]} 10. Qd3 {[%emt 0:00:00]} Qd7 {[%emt 0:20:06]} 11. Rd1 {[%emt 0:00:00]} Be7 {[%emt 0:14:25]} 12. Be3 {[%emt 0:00:00]} O-O {[%emt 0:04:49]} 13. Qc3 {[%emt 0:00:00]} Qg4 {[%emt 0:14:47]} 14. Nd2 {[%emt 0:00:00]} Qg6 {[%emt 0:05:42]} 15. Bd4 {[%emt 0:00:00]} Bf5 {[%emt 0:03:44]} 16. Rac1 {[%emt 0:00:00]} Bg5 {[%emt 0:05:45]} 17. Re1 {[%emt 0:00:00]} a6 {[%emt 0:05:34]} 18. Be3 {[%emt 0:00:00]} Be7 {[%emt 0:04:11]} 19. Bc5 {[%emt 0:00:00]} Rfe8 {[%emt 0:02:51]} 20. Nb3 {[%emt 0:02:22]} Bg5 {[%emt 0:00:45]} 21. Be3 {[%emt 0:00:17]} Be7 {[%emt 0:01:23]} 22. Bc5 {[%emt 0:01:07]} Bg5 {[%emt 0:00:02]} 23. Be3 {[%emt 0:00:10]} Be7 {[%emt 0:00:06]} 24. Kh1 {[%emt 0:00:46]} Rab8 {[%emt 0:01:23]} 25. Bc5 {[%emt 0:00:25]} Bg5 {[%emt 0:00:15]} 26. Be3 {[%emt 0:00:32]} Be7 {[%emt 0:00:10]} 27. Bc5 {[%emt 0:06:51]} Bg5 {[%emt 0:00:08]} 28. Be3 {[%emt 0:00:00]} Be7 {[%emt 0:07:48]} 29. Re2 {[%emt 0:01:00]} Bb4 {[%emt 0:00:30]} 30. Qd4 {[%emt 0:00:30]} Be4 {[%emt 0:00:30]} 31. Ree1 {[%emt 0:00:30]} Bf5 32. Qc3 Be7 33. Nc5 {[%emt 0:01:00]} Bxc5 34. Bxc5 1/2-1/2

[Event "FIDE World Cup O12-B 2024"]
[Site "Batumi"]
[Date "2024.06.25"]
[Round "3.11"]
[White "Martinez Flores, Matias"]
[Black "Atar, Semih Akif"]
[Result "1-0"]
[ECO "C02"]
[WhiteElo "2080"]
[BlackElo "1660"]
[Annotator "NA RC"]
[PlyCount "41"]
[EventDate "2024.06.23"]
[EventType "swiss"]
[EventCountry "GEO"]
[SourceTitle "playchess.com"]
[Source "ChessBase"]
[SourceQuality "1"]
[TimeControl "5400+30"]

1. e4 {[%emt 0:00:03]} e6 {[%emt 0:00:10]} 2. d4 {[%emt 0:00:09]} d5 {[%emt 0:00:04]} 3. e5 {[%emt 0:00:05]} c5 {[%emt 0:00:06]} 4. c3 {[%emt 0:00:04]} Nc6 {[%emt 0:00:05]} 5. Nf3 {[%emt 0:00:04]} Nge7 {[%emt 0:00:06]} 6. Na3 {[%emt 0:00:59]} cxd4 {[%emt 0:00:14]} 7. cxd4 {[%emt 0:00:06]} Nf5 {[%emt 0:00:15]} 8. Nc2 {[%emt 0:00:05]} Be7 {[%emt 0:01:34]} 9. Be2 {[%emt 0:00:48]} Bd7 {[%emt 0:00:53]} 10. O-O {[%emt 0:00:50]} O-O {[%emt 0:00:21]} 11. Rb1 {[%emt 0:08:43]} Qb6 {[%emt 0:01:32]} 12. Bd3 {[%emt 0:02:26]} Rac8 {[%emt 0:03:55]} 13. g4 {[%emt 0:02:39]} f6 $2 {[%emt 0:12:32]} 14. gxf5 {[%emt 0:01:24]} exf5 {[%emt 0:00:07]} 15. Ne3 {[%emt 0:06:35]} Nxd4 $18 {[%emt 0:01:47]} 16. Nxd4 {[%emt 0:00:33]} Qxd4 {[%emt 0:00:17]} 17. Bxf5 {[%emt 0:00:04]} Qxd1 {[%emt 0:00:20]} 18. Rxd1 {[%emt 0:00:07]} Bxf5 {[%emt 0:00:25]} 19. Nxf5 {[%emt 0:00:05]} Kf7 {[%emt 0:04:11]} 20. Nxe7 {[%emt 0:00:40]} Kxe7 {[%emt 0:00:08]} 21. exf6+ {[%emt 0:00:05]} 1-0

[Event "FIDE World Cup O12-B 2024"]
[Site "Batumi"]
[Date "2024.06.25"]
[Round "3.12"]
[White "Minkhajdarov, Ruslan"]
[Black "Cronje, Johannes Christiaan"]
[Result "1-0"]
[ECO "B13"]
[WhiteElo "1921"]
[BlackElo "1504"]
[Annotator "NA RC"]
[PlyCount "89"]
[EventDate "2024.06.23"]
[EventType "swiss"]
[EventCountry "GEO"]
[SourceTitle "playchess.com"]
[Source "ChessBase"]
[SourceQuality "1"]
[TimeControl "5400+30"]

1. e4 {[%emt 0:00:03]} c6 {[%emt 0:00:04]} 2. d4 {[%emt 0:00:17]} d5 {[%emt 0:00:06]} 3. exd5 {[%emt 0:00:38]} cxd5 {[%emt 0:00:11]} 4. Nf3 {[%emt 0:00:03]} Nc6 {[%emt 0:00:19]} 5. c4 {[%emt 0:00:16]} Nf6 {[%emt 0:00:20]} 6. Nc3 {[%emt 0:00:07]} Bg4 {[%emt 0:00:56] 6...a6 is the modern continuation.} 7. cxd5 {[%emt 0:12:48]} Nxd5 {[%emt 0:00:21]} 8. Qb3 {[%emt 0:01:03]} Nxc3 {[%emt 0:01:12] B13: Caro-Kann: Exchange Variation and Panov-Botvinnik Attack.} 9. bxc3 {[%emt 0:00:08]} Qc7 {[%emt 0:02:35]} 10. Be2 {[%emt 0:13:44]} e6 {[%emt 0:01:03]} 11. O-O {[%emt 0:00:07]} Bd6 {[%emt 0:00:34]} 12. h3 {[%emt 0:00:33]} Bh5 {[%emt 0:00:38]} 13. Be3 {[%emt 0:00:59]} O-O {[%emt 0:00:26]} 14. c4 $146 {[%emt 0:02:09]} ({Predecessor:} 14. Rac1 a6 15. c4 Rab8 16. Rfe1 Rfc8 17. Qb1 Bf4 18. Qe4 Bxe3 19. Qxe3 Rd8 20. Red1 {1-0 Pires,G (2137)-Andrade,N (1776) St Joao da Madeira op 10th 2013 (5.6)}) 14... e5 {[%emt 0:05:14]} 15. c5 {[%emt 0:16:37]} Bxc5 {[%emt 0:03:26]} 16. dxc5 {[%emt 0:01:22]} e4 {[%emt 0:00:18]} 17. g4 {[%emt 0:03:41]} exf3 {[%emt 0:00:10]} 18. Bxf3 {[%emt 0:00:02]} Bg6 {[%emt 0:00:16]} 19. Rad1 {[%emt 0:01:38]} Rad8 {[%emt 0:01:06]} 20. Bg2 {[%emt 0:03:31]} Rd7 {[%emt 0:01:36]} 21. Rxd7 {[%emt 0:00:12]} Qxd7 {[%emt 0:00:09]} 22. Rd1 {[%emt 0:00:47]} Qc7 {[%emt 0:01:02]} 23. Rd6 {[%emt 0:01:25]} Rd8 {[%emt 0:02:49]} 24. Qd5 {[%emt 0:07:26]} Rxd6 {[%emt 0:02:43]} 25. cxd6 {[%emt 0:01:12]} Qd7 {[%emt 0:00:41]} 26. f4 {[%emt 0:02:13]} h6 {[%emt 0:00:54]} 27. f5 {[%emt 0:00:28]} Bh7 $18 {[%emt 0:00:17]} 28. Bf4 {[%emt 0:01:33]} Kf8 {[%emt 0:01:28]} 29. Qb3 {[%emt 0:10:42]} Bg8 {[%emt 0:00:34]} 30. Bd5 {[%emt 0:01:57]} a6 {[%emt 0:00:26]} 31. Kf2 {[%emt 0:02:46]} Ke8 {[%emt 0:00:09]} 32. Qe3+ {[%emt 0:01:01]} Kf8 {[%emt 0:00:58]} 33. a3 {[%emt 0:02:48]} Bh7 {[%emt 0:00:08]} 34. Qb3 {[%emt 0:04:55]} Bg8 {[%emt 0:00:06]} 35. Qe3 {[%emt 0:00:39]} Bh7 {[%emt 0:00:07]} 36. Qd3 {[%emt 0:00:16]} Ke8 {[%emt 0:00:30]} 37. Qe2+ {[%emt 0:00:22]} Kf8 {[%emt 0:00:10]} 38. Qe4 {[%emt 0:00:29]} Bg8 {[%emt 0:00:27]} 39. f6 {[%emt 0:04:05]} Na5 {[%emt 0:00:49]} 40. fxg7+ {[%emt 0:01:22]} Kxg7 {[%emt 0:00:14]} 41. Qe5+ {[%emt 0:01:05]} f6 {[%emt 0:00:11]} 42. Bxh6+ {[%emt 0:00:02]} Kxh6 {[%emt 0:00:51]} 43. Qxf6+ {[%emt 0:00:13]} Kh7 {[%emt 0:00:31]} 44. Be4+ {[%emt 0:00:02]} Qf5+ {[%emt 0:00:27]} 45. Bxf5# {[%emt 0:00:02]} 1-0